Cogmind - Beta 12 @@@ ROGUE MODE // 2023.03.09 @ 20:28:15 Player: Eddie Result: Destroyed by X-57 Shotgunner with Shotgun Performance ------------- Evolutions (2) 1000 Regions Visited (4) 800 Robots Destroyed (87) 435 Value Destroyed (2488) 2488 Prototype IDs (8) 160 Alien Tech Used (0) 0 Bonus (371) 371 TOTAL SCORE: 5254 Bonus ------- High Alert Combat Kills 298 Follower Combat Kills 73 Cogmind --------- Core Integrity 0/550 Matter 281/300 Energy 340/340 System Corruption 0% Temperature Cool (-100) Movement Treading (145) Location -8/Materials Parts ------- > --- POWER (2) -------- Heavy Ion Engine Light Nuclear Core > --- PROPULSION (4) --- Advanced Treads Advanced Treads Carbon-fiber Leg > --- UTILITY (3) ------ Cryofiber Web Medium Storage Unit Hardlight Generator > --- WEAPON (2) ------- Heavy Particle Gun Katana > --- INVENTORY (10) --- Advanced Treads Carbon-fiber Leg Improved Carbon-fiber Leg Hacking Suite Improved Medium Laser Ion Cannon Rocket Launcher Heavy Flail Peak State ------------ > --- POWER ------------ Heavy Ion Engine Deuterium Engine > --- PROPULSION ------- Advanced Treads Advanced Treads Advanced Treads Carbon-fiber Leg > --- UTILITY ---------- Cryofiber Web Medium Storage Unit Hardlight Generator > --- WEAPON ----------- Heavy Particle Gun Ion Cannon > --- INVENTORY -------- Advanced Treads Hacking Suite Improved Medium Laser Rocket Launcher Heavy Flail Katana [Rating: 33] Favorites ----------- Power Ion Engine Engine Ion Engine Power Core Light Nuclear Core Propulsion Aluminum Leg Treads Advanced Treads Leg Aluminum Leg Utility Medium Storage Unit Device Hardlight Generator Storage Medium Storage Unit Protection Improved Light Armor Plating Weapon Light Assault Rifle Energy Gun Small Laser Energy Cannon Ion Cannon Ballistic Gun Light Assault Rifle Impact Weapon Heavy Flail Slashing Weapon Katana Build | -11 -10 -9 -9 -8 ------- Run | Jun Mat Mat Min Mat Slots Evolved 4 | . . 2 . 2 Power 1 | . . . . 1 Propulsion 2 | . . 2 . . Utility 1 | . . . . 1 Weapon . | . . . . . Parts Attached 78 | 5 14 21 . 38 Power 15 | 1 3 3 . 8 Engine 10 | 1 3 2 . 4 Core 5 | . . 1 . 4 Reactor . | . . . . . Propulsion 32 | 2 6 10 . 14 Treads 3 | . . . . 3 Leg 29 | 2 6 10 . 11 Wheel . | . . . . . Hover . | . . . . . Flight . | . . . . . Utility 13 | 1 1 2 . 9 Device 7 | . . 1 . 6 Storage 3 | 1 1 . . 1 Processor . | . . . . . Hackware . | . . . . . Protection 3 | . . 1 . 2 Artifact . | . . . . . Weapon 18 | 1 4 6 . 7 Energy Gun 5 | . 2 . . 3 Energy Cannon 2 | . . . . 2 Ballistic Gun 8 | 1 2 5 . . Ballistic Cannon . | . . . . . Launcher . | . . . . . Special Weapon . | . . . . . Impact Weapon 1 | . . 1 . . Slashing Weapon 2 | . . . . 2 Piercing Weapon . | . . . . . Special Melee Weapon . | . . . . . Unidentified Prototypes 1 | . . . . 1 Parts Lost 21 | . 4 4 . 13 Power 7 | . 3 2 . 2 Propulsion 7 | . . 1 . 6 Utility 4 | . . 1 . 3 Weapon 3 | . 1 . . 2 Highest Loss Streak 6 | . 3 3 . 6 To Critical Strikes . | . . . . . Average Slot Usage (%) 89 | . 80 95 100 91 Engine 9 | . 9 7 11 11 Core 3 | . . 3 . 5 Leg 34 | . 27 43 44 31 Device 5 | . . 5 11 9 Storage 11 | . 14 11 11 8 Protection 2 | . . 2 . 4 Energy Gun 4 | . 8 . . 4 Energy Cannon 1 | . . . . 4 Ballistic Gun 13 | . 19 20 11 1 Impact Weapon 1 | . . 1 11 1 Slashing Weapon 1 | . . . . 5 Naked Turns . | . . . . . Heaviest Build 40 | 12 17 28 28 40 Greatest Support 66 | 20 20 46 43 66 Greatest Overweight (x) 1 | . 1 . . 1 Average Overweight (x) . | . . . . . Largest Inventory Capacity 10 | 8 10 10 10 10 Average Capacity 9 | 7 8 10 10 9 Most Carried 10 | 5 8 10 9 10 Average Carried 7 | 2 5 9 9 7 Final Capacity 10 | 8 10 10 10 10 Final Carried 9 | 2 7 9 9 8 Class Distribution -------------------- 71% | Scavenger-Mutant 28% | Mutant Dominant Class ---------------- Mutant | -10/Materials Scavenger-Mutant | -9/Materials Scavenger-Mutant | -9/Mines Scavenger-Mutant | -8/Materials Resources | -11 -10 -9 -9 -8 ----------- Run | Jun Mat Mat Min Mat Matter Collected 1737 | 250 278 734 10 465 Remotely . | . . . . . Salvage Created 3177 | . 694 1097 . 1386 Parts 204 | . 50 74 . 80 Haulers Intercepted 7 | . 1 4 . 2 Recyclers Shooed . | . . . . . Parts Field Recycled . | . . . . . Retrieved Matter . | . . . . . Parts Self-Destructed . | . . . . . Prevented . | . . . . . Kills | -11 -10 -9 -9 -8 ------- Run | Jun Mat Mat Min Mat Combat Hostiles Destroyed 65 | . 15 22 . 28 Melee 15 | . . . . 15 Guns 45 | . 15 22 . 8 Cannons 4 | . . . . 4 Classes Destroyed 14 | . 7 3 . 4 Worker 4 | . 2 . . 2 Builder 1 | . . . . 1 Tunneler 1 | . 1 . . . Hauler 7 | . 1 4 . 2 Recycler 1 | . 1 . . . Operator 1 | . . 1 . . Watcher 7 | . 2 4 . 1 Swarmer 18 | . 6 5 . 7 Grunt 30 | . 9 10 . 11 Duelist 2 | . . 1 . 1 Protector 1 | . . . . 1 Sentry 11 | . . 6 . 5 Specialist 2 | . . . . 2 Hunter 1 | . . . . 1 Best Kill Streak 7 | . 5 7 . 4 Combat Bots Only 7 | . 3 7 . 4 Max Kills in Single Turn 1 | . 1 1 . 1 Gunslinging . | . . . . . Exploded . | . . . . . Melee 1 | . . . . 1 Uniques/NPCs Destroyed . | . . . . . Combat | -11 -10 -9 -9 -8 -------- Run | Jun Mat Mat Min Mat Damage Taken 4808 | . 784 1136 . 2888 Core 866 | . 116 197 . 553 Absorbed by Shields 516 | . . 56 . 460 Regen/Repaired (Parts) 314 | . 86 68 . 160 Core Remaining (%) 67 | 100 53 . 50 . Volleys Fired 271 | . 83 80 . 108 Largest 2 | . 2 2 . 2 Hottest 115 | . 80 46 . 115 Shots Fired 480 | . 166 159 . 155 Gun 431 | . 166 159 . 106 Cannon 49 | . . . . 49 Launcher . | . . . . . Special . | . . . . . Kinetic 278 | . 88 159 . 31 Thermal 169 | . 78 . . 91 Explosive . | . . . . . Electromagnetic 33 | . . . . 33 Robot Hit Streak 10 | . 9 10 . 8 Robot Miss Streak 6 | . 6 5 . 5 Penetration Max . | . . . . . Secondary Targets 1 | . 1 . . . Max Gunslinging Chain 1 | . 1 . . . Shots Hit Robots 343 | . 84 107 . 152 Core Hits 148 | . 37 56 . 55 Critical Kills . | . . . . . Critical Parts Destroyed 1 | . . 1 . . Critical Strikes 7 | . . 1 . 6 Burn 3 | . . . . 3 Destroy 1 | . . 1 . . Sever 3 | . . . . 3 Melee Attacks 70 | . . . . 70 Impact 4 | . . . . 4 Slashing 66 | . . . . 66 Piercing . | . . . . . Sneak Attacks 4 | . . . . 4 Combat Hostiles . | . . . . . Follow-up Attacks . | . . . . . Damage Inflicted 5995 | . 984 1537 . 3474 Guns 3649 | . 984 1537 . 1128 Cannons 656 | . . . . 656 Explosions . | . . . . . Melee 1690 | . . . . 1690 Ramming . | . . . . . Kinetic 2416 | . 520 1537 . 359 Thermal 1651 | . 464 . . 1187 Explosive . | . . . . . Electromagnetic 238 | . . . . 238 Impact . | . . . . . Slashing 1690 | . . . . 1690 Piercing . | . . . . . Highest Corruption . | . . . . . Average Corruption . | . . . . . Corruption Purged . | . . . . . Corruption Blocked . | . . . . . Overload Shots . | . . . . . Overflow Damage 118 | . . . . 118 Projectiles 3 | . . . . 3 Explosions . | . . . . . Melee 115 | . . . . 115 Knockbacks . | . . . . . Impact . | . . . . . Kinetic . | . . . . . Secondary . | . . . . . Self-Inflicted Damage . | . . . . . Shots . | . . . . . Rammed . | . . . . . Targets Rammed . | . . . . . Kicked . | . . . . . Crushed . | . . . . . Highest Temperature 565 | . 51 14 . 565 Average Temperature 93 | . 14 3 . 155 Received Heat Transfer 1831 | . 339 417 . 1075 Effects 5 | . . . . 5 Shutdowns 1 | . . . . 1 Energy Bleed 1 | . . . . 1 Interference 2 | . . . . 2 Matter Decay 1 | . . . . 1 Siege Activations . | . . . . . Robots Corrupted . | . . . . . Combat Hostiles . | . . . . . Parts Fried . | . . . . . Impact Corruptions . | . . . . . Robots Melted 1 | . . . . 1 Combat Hostiles 1 | . . . . 1 Parts Melted 7 | . 2 . . 5 Heat Transferred 3418 | . 1050 . . 2368 Parts Sabotaged . | . . . . . Parts Stolen . | . . . . . Parts Stripped . | . . . . . Power Chain Reactions . | . . . . . Missiles Intercepted . | . . . . . Alert | -11 -10 -9 -9 -8 ------- Run | Jun Mat Mat Min Mat Peak Influence 804 | . 188 516 177 804 Initial 177 | . . 29 177 68 Average 261 | . 40 334 177 429 Maximum Alert Level 3 | . . 2 . 3 Low Security (%) 48 | 100 100 25 100 11 Level 1 21 | . . 28 . 41 Level 2 26 | . . 46 . 39 Level 3 2 | . . . . 7 Level 4 . | . . . . . Level 5 . | . . . . . High Security . | . . . . . Max Security . | . . . . . Squads Dispatched 12 | . 3 2 . 7 Investigation 4 | . 2 1 . 1 Extermination . | . . . . . Reinforcement 6 | . 1 1 . 4 Assault 1 | . . . . 1 Garrison 1 | . . . . 1 Intercept . | . . . . . Searches Triggered . | . . . . . Construction Impeded . | . . . . . Haulers Reinforced . | . . . . . Active Scanning Responses . | . . . . . Cargo Convoy Interrupts . | . . . . . Stealth | -11 -10 -9 -9 -8 --------- Run | Jun Mat Mat Min Mat Distress Signals 11 | . 2 6 . 3 Communications Jammed . | . . . . . Distress Signals . | . . . . . Times Spotted 123 | . 29 38 . 56 Peak Tracking Total 9 | . 4 8 . 9 Tactical Retreats 7 | . . 2 . 5 Traps | -11 -10 -9 -9 -8 ------- Run | Jun Mat Mat Min Mat Traps Triggered 3 | . 2 . . 1 Indirectly . | . . . . . Trap Hack Attempts . | . . . . . Triggered . | . . . . . Disarmed 7 | . 7 . . . Reprogrammed . | . . . . . Reused . | . . . . . Traps Extracted . | . . . . . Installed . | . . . . . Triggered . | . . . . . Machines | -11 -10 -9 -9 -8 ---------- Run | Jun Mat Mat Min Mat Machines Disabled 5 | . . . . 5 Max in Single Turn 1 | . . . . 1 Garrison Access 1 | . . . . 1 Machines Repaired . | . . . . . Machines Sabotaged . | . . . . . Overloaded Fab Kills . | . . . . . Hacking | -11 -10 -9 -9 -8 --------- Run | Jun Mat Mat Min Mat Machines Accessed 22 | . 6 11 . 5 Terminals 16 | . 5 8 . 3 Fabricators . | . . . . . Repair Stations 3 | . 1 1 . 1 Recycling Units 1 | . . 1 . . Scanalyzers 2 | . . 1 . 1 Garrison Access . | . . . . . Total Hacks 88 | . 25 44 . 19 Successful 46 | . 18 19 . 9 Failed 42 | . 7 25 . 10 Catastrophic 5 | . . 4 . 1 Database Lockouts . | . . . . . Manual . | . . . . . Terminals 57 | . 20 30 . 7 Fabricators . | . . . . . Repair Stations 17 | . 5 2 . 10 Recycling Units 2 | . . 2 . . Scanalyzers 12 | . . 10 . 2 Garrison Access . | . . . . . Terminal Hacks 23 | . 13 9 . 1 Robot Analysis 2 | . 1 1 . . Prototype ID Bank 4 | . 1 3 . . Branch Access Points 1 | . . 1 . . Emergency Access Points 3 | . 1 2 . . Terminal Index 1 | . 1 . . . Alert Level 1 | . 1 . . . Unreport Threat 2 | . 2 . . . Locate Traps 2 | . 1 1 . . Disarm Traps 3 | . 3 . . . Dispatch Records 1 | . 1 . . . Security Status 1 | . . 1 . . Investigation Status 1 | . 1 . . . Zone Layout 1 | . . . . 1 Fabricator Hacks . | . . . . . Repair Station Hacks 13 | . 5 2 . 6 Scan Component 7 | . 3 1 . 3 Repair 6 | . 2 1 . 3 Recycling Unit Hacks 1 | . . 1 . . Report Inventory 1 | . . 1 . . Scanalyzer 9 | . . 7 . 2 Insert Component 4 | . . 3 . 1 Analyze 5 | . . 4 . 1 Garrison Access Hacks . | . . . . . Unauthorized Hacks . | . . . . . Terminals . | . . . . . Fabricators . | . . . . . Repair Stations . | . . . . . Recycling Units . | . . . . . Scanalyzers . | . . . . . Garrison Access . | . . . . . Data Cores Recovered . | . . . . . Used . | . . . . . Hacking Detections 21 | . 6 11 . 4 Full Trace Events 5 | . 2 2 . 1 Feedback Events . | . . . . . Feedback Blocked . | . . . . . Robot Schematics Acquired . | . . . . . Robots Built . | . . . . . Authchips . | . . . . . Time . | . . . . . Total Robot Build Rating . | . . . . . Part Schematics Acquired 4 | . . 3 . 1 Parts Built . | . . . . . Authchips . | . . . . . Time . | . . . . . Total Part Build Rating . | . . . . . Parts Repaired 6 | . 2 1 . 3 Time 198 | . 64 32 . 102 Parts Recycled . | . . . . . Recycled Matter . | . . . . . Retrieved Matter . | . . . . . Retrieved Components . | . . . . . Parts Scanalyzed 4 | . . 3 . 1 Part Schematics Acquired 4 | . . 3 . 1 Parts Damaged 1 | . . 1 . . Bothacking | -11 -10 -9 -9 -8 ------------ Run | Jun Mat Mat Min Mat Used RIF Installer . | . . . . . Robots Hacked . | . . . . . Non-combat . | . . . . . Combat . | . . . . . Robot Hacks Applied . | . . . . . Relay Couplers Released 2 | . . . . 2 Machine Destruction 2 | . . . . 2 Fabnet Peak Effective % . | . . . . . Robots Rewired 1 | . . . . 1 Allies Hacked . | . . . . . Hacks Repelled . | . . . . . Allies | -11 -10 -9 -9 -8 -------- Run | Jun Mat Mat Min Mat Total Allies 3 | . . . 2 1 Largest Group 2 | . . . 2 2 Highest-Rated Group 48 | . . . 48 48 Highest-Rated Ally 31 | . . . 31 31 Total Orders . | . . . . . Ally Attacks 17 | . . . . 17 Total Damage 208 | . . . . 208 Kills 4 | . . . . 4 Allies Corrupted . | . . . . . Allies Melted . | . . . . . Intel | -11 -10 -9 -9 -8 ------- Run | Jun Mat Mat Min Mat Robot Analysis Total 2 | . 1 1 . . Derelict Logs Recovered . | . . . . . Drone Launches . | . . . . . Drone Recoveries . | . . . . . Exploration | -11 -10 -9 -9 -8 ------------- Run | Jun Mat Mat Min Mat Turns Passed 4702 | 56 1462 1391 254 1539 Spaces Moved 2419 | 45 798 742 212 622 Core 13 | 13 . . . . Treads 26 | . . . . 26 Legs 2380 | 32 798 742 212 596 Wheels . | . . . . . Hover . | . . . . . Flight . | . . . . . Fastest Speed 50 | 50 120 120 120 120 Average Speed 121 | 99 120 120 120 126 Slowest Speed 225 | 120 190 120 120 225 Overloaded Moves . | . . . . . Propulsion Burnouts . | . . . . . Robots Hopped . | . . . . . Cave-ins Triggered . | . . . . . Exploration Rate (%) 54 | 3 91 68 55 57 Regions Visited 4 Branch Regions 1 Pre-discovered Areas . | . . . . . Known Exits Taken 1 | . . 1 . . Unknown Exits Taken 3 | 1 1 . 1 . Scrap Searched 1 | . . . 1 . Spaces Dug . | . . . . . Terrain Destroyed 7 | . . . . 7 Melee . | . . . . . Projectile 7 | . . . . 7 AOE . | . . . . . Terrain Rammed . | . . . . . Walls Destroyed . | . . . . . Machines Disabled . | . . . . . Actions | -11 -10 -9 -9 -8 --------- Run | Jun Mat Mat Min Mat Total 3608 | 56 1139 1087 211 1115 Wait 662 | . 224 214 . 224 Move 2415 | 44 797 741 211 622 Hop . | . . . . . Pick Up 72 | 7 17 17 . 31 Fast Attach 6 | . 1 4 . 1 Attach 35 | 5 6 6 . 18 Detach 3 | . . . . 3 Swap 37 | . 7 11 . 19 Drop 32 | . 4 14 . 14 Fire 271 | . 83 80 . 108 Melee 70 | . . . . 70 Ram . | . . . . . Kick . | . . . . . Crush . | . . . . . Escape Stasis . | . . . . . Rewire 5 | . . . . 5 Trap . | . . . . . Miscellaneous . | . . . . . Route ------- -11/Junkyard -10/Materials (discovered 3 exits: *Mat / [*Min x2]) -9/Materials (discovered 3 exits: *Mat x2 / *Min) -9/Mines -8/Materials (discovered 1 exit: [*Fac]) History --------- Turn | Location | Event 3 | -11/Junkyard | Discovered new exit (range 15) 57 | -11/Junkyard | Entered Materials 181 | -10/Materials | Discovered new exit (range 5) 306 | -10/Materials | Build established: Mutant 310 | -10/Materials | Discovered new exit (range 7) 476 | -10/Materials | Lost 3 parts (2p1w) 793 | -10/Materials | Discovered new exit (range 15) 1253 | -10/Materials | Build established: Scavenger-Mutant 1413 | -10/Materials | Repaired Imp. Heat Sink 1440 | -10/Materials | Repaired Aluminum Leg? 1519 | -10/Materials | Entered another Materials area 1519 | -9/Materials | Evolved 2 slots: Propulsion x2 1906 | -9/Materials | Destroyed 7 combat bots 1908 | -9/Materials | Lost 3 parts (1p1n1u) 2304 | -9/Materials | Discovered new exit (range 15) 2363 | -9/Materials | Identified exit to Mines 2620 | -9/Materials | Repaired Imp. Aluminum Leg 2665 | -9/Materials | Discovered new exit (range 15) 2910 | -9/Materials | Entered Mines 2944 | -9/Mines | A weapon hastily lodged in a ceiling crevice suddenly fell to the ground 3118 | -9/Mines | Discovered new exit (range 11) 3164 | -9/Mines | Entered Materials 3164 | -8/Materials | Accompanied by 2 allies 3164 | -8/Materials | Evolved 2 slots: Power x1, Utility x1 3169 | -8/Materials | Led the pair of lost Derelicts to an unsafe place 3572 | -8/Materials | Lost 6 parts (1p2n1u2w) 4209 | -8/Materials | Core integrity fell below 50% 4277 | -8/Materials | Discovered new exit (range 16) 4369 | -8/Materials | Repaired Carbon-fiber Leg 4409 | -8/Materials | Repaired Hardlight Generator 4437 | -8/Materials | Repaired Med. Storage Unit 4607 | -8/Materials | Core integrity fell below 20% 4626 | -8/Materials | Lost 3 parts (1p1n1u) 4667 | -8/Materials | Build established: Mutant 4703 | -8/Materials | Destroyed by X-57 Shotgunner with Shotgun Last Messages --------------- G-47 Trooper destroyed. Acquired 26 matter. U-05 Engineer builds a Door. Slug penetrates Wall. H-55 Commando destroyed. K-01 Serf collects debris. Acquired 40 matter. K-01 Serf collects debris. Acquired Carbon-fiber Leg. K-01 Serf collects debris. Acquired Lgt. Nuclear Core. ALERT: Suspicious intruders detected, dispatching Specialist reinforcements to area. K-01 Serf collects debris. Acquired Imp. Carbon-fiber Leg. K-01 Serf collects debris. Acquired 51 matter. K-01 Serf collects debris. Destroyed Imp. Heat Sink. K-01 Serf destroyed. Map ----- +----------------------------------------------------+ | ?????????????????????????????????????????????????? | | ?????????????????????????????????????????????????? | | ????????##########???????????##########??????????? | | ????????# #???????????# #??????????? | | ????????# """ #???????????# #??????????? | | ????????# "R #???????????# #??????????? | | ????????# """ #???????????# #??????????? | | ????????# #???????????# #??????????? | | ????????# """ !#?########??# #??????????? | | ????????# ! """ #?##!!!!##??# #??????????? | | ????????# """ #?#! !#??# #??????????? | | ????????# #?# #??# %*[ #??????????? | | ????????#####+###### ########+####?????###### | | ?????????# = %=% #?????# | | ?????????# < [[% =[* #?????# """ | | ?????????# ^== =* !! #?????# """ | | ?????????####+####### ###+#######^% #?????# """ | | ?????????# ## # #?#[ #?????# | | ?????????# "" ## # "" ! ##?# #?????# | | ?????????# """ ## # "T #??# ##########+# | | ?????????# """ S" ## # "" #??# =%! | | ?????????# """ ## # #??# ! | | ?????????# """ ## # #??# | | ?????????# ## ########################## | | ?????????# ! ## # = #????# ??????? | | ?????????############ =#@ = T" #????# ""??????? | | ????????????????????# !%x! = =% #????# ""??????? | | ????????????????????#!=!# ===%= #????# ""????"?? | | ????????????????????# %###### ####????# ???? ?? | | ????????????##?????## %=###??###???????# ???? ?? | | ???????????? ####### #?????????????####??##+#? | | ???????????? #??????????#######?# ? | | ??????????H? #??????????# ?? ? | | ???????????? #??????????# ?? ? | | ???????????? ####### #??????????# ???! !? | | ???????????????????###+###???????????????????? ? | | ?????????????????????? ??????????????########?# #? | | ?????????????????????? ??????????????# ! #?# #? | | ?????????????????????????????????????# #?# ## | | ?????????????????????????????????????# == #?# | | ?????????????????????????????????????# =[ #?# | | ?????????????????????????????????????# =! #?# ! | | ?????????????????????????????????????# #?#% | | ?????????????????????????????????????###+##+### | | ???????????????????????????????????????# | | ???????????????????????????????????????# | | ????????????????????????????????????#### ##+## | | ????????????????????????????????????+ ## | | ?????????????????????????????????" #### ##= | | ???????????????????????????????????????# ## | +----------------------------------------------------+ Best States ------------- Heat Dissipation 45 Energy Generation 24 Energy Capacity 455 Matter Stores 300 Matter Capacity 300 Sight Range 16 Terrain Scan Density 10 Base Temperature (-) 100 Armor Coverage 225 Evasion (%) 55 Recoil Reduction 3 Item Schematics ----------------- Imp. Assault Rifle | -9/Materials | Scanalyzed Hacking Suite | -9/Materials | Scanalyzed Med. Armor Plating | -9/Materials | Scanalyzed Hvy. Particle Gun | -8/Materials | Scanalyzed Robot Schematics ------------------ None Fabricated ------------ Nothing Alien Tech Used ----------------- None Achievements -------------- None Challenges ------------ None Game ------ Seed RecoilForceBox Manual? 0 Play Time 00:41:30 Cumulative 9.4 hours Start 2023.03.09 @ 17:48:24 End 2023.03.09 @ 20:28:15 Sessions 3 Manual Loads 0 Difficulty Rogue Special Mode None Game No. 18 Rogue 18 Adventurer 0 Explorer 0 Win Type - Total 0 Types 0/0/0/0/0/0/0/0/0 Lore% 11 Gallery% 16 Achievement% 15 Wizard Run 0 Options --------- ASCII 0 Keyboard 0 Movement Mouse Keybinds 0 Fullscreen 1 Font 18/Smallcaps Map View 76x50 Tactical HUD 0 Map Filters NONE Filters NONE Steam 1 RUN: dad550d3-bde7-43d1-a3b9-56fdeda16b15